Workbook

Sheet Figure 4a
A1: Positive allosteric modulation by TPA023B of various GABAARs in HEK293 cells transiently transfected with the respective GABAAR subunits
B3: I GABA potentiation (%)
B4: α1β2γ2 | D4: α2β3γ2 | F4: α3β3γ2 | H4: α5β2γ2
A5: conc TPA023B (nM) | B5: mean | C5: SEM | D5: mean | E5: SEM | F5: mean | G5: SEM | H5: mean | I5: SEM
A6: 1 | D6: =U24 -> -4.031007752 | E6: =V24 -> 2.364341085
A7: 3 | F7: =U52 -> 19.39525428 | G7: 4.023786523 | H7: =U65 -> 4.012903226 | I7: 0.7870967742
A8: 10 | B8: =U39 -> -5.610628511 | C8: 6.284580958 | D8: =U26 -> 30.49750943 | E8: 12.981787 | F8: 24.09364 | G8: 5.535709546 | H8: -0.5271039162 | I8: 3.620741809
A9: 30 | B9: -1.393567389 | C9: 13.99569637 | D9: 44.31460019 | E9: 15.71814506 | F9: 52.92511561 | G9: 13.00905394 | H9: 13.7825735 | I9: 10.51665733
A10: 100 | B10: -3.824068089 | C10: 15.14635191 | D10: 71.31248988 | E10: 14.45365107 | F10: 86.14852915 | G10: 19.93835711 | H10: 4.058639695 | I10: 6.807641029
A11: 300 | B11: 3.74976355 | C11: 7.874436134 | D11: 98.10527895 | E11: 14.0416202 | F11: 115.5503063 | G11: 25.6922665 | H11: 25.04971304 | I11: 7.044474213
A12: 1000 | B12: 3.777308333 | C12: 7.286330464 | D12: 107.3354904 | E12: 18.1084446 | F12: 109.3818215 | G12: 24.37693618 | H12: 38.95265877 | I12: 9.16604437
B20: α2β3γ2 | U20: α2β3γ2
B21: Conc nM | C21: cell1 | F21: cell2 | I21: cell3 | L21: cell4 | O21: cell5 | R21: cell6 | U21: I GABA potentiation (%)
C22: I GABA (pA) | D22: I GABA potentiation (%) | F22: I GABA (pA) | G22: I GABA potentiation (%) | I22: I GABA (pA) | J22: I GABA potentiation (%) | L22: I GABA (pA) | M22: I GABA potentiation (%) | O22: I GABA (pA) | P22: I GABA potentiation (%) | R22: I GABA (pA) | S22: I GABA potentiation (%) | U22: mean | V22: SEM
B23: 0 | C23: 22 | D23: =((C23/C23)*100)-100 -> 0 | F23: 719 | G23: =((F23/F23)*100)-100 -> 0 | I23: 334 | J23: =((I23/I23)*100)-100 -> 0 | L23: 106 | M23: =((L23/L23)*100)-100 -> 0 | O23: 60 | P23: =((O23/O23)*100)-100 -> 0 | R23: 172 | S23: =((R23/R23)*100)-100 -> 0
B24: 1 | O24: 59 | P24: =((O24/O23)*100)-100 -> -1.666666667 | R24: 161 | S24: =((R24/R23)*100)-100 -> -6.395348837 | U24: =AVERAGE(P24,S24) -> -4.031007752 | V24: =STDEV(P24,S24)/SQRT(2) -> 2.364341085
B26: 10 | C26: 22 | D26: =((C26/C23)*100)-100 -> 0 | F26: 867 | G26: =((F26/F23)*100)-100 -> 20.58414465 | I26: 595 | J26: =((I26/I23)*100)-100 -> 78.14371257 | O26: 79 | P26: =((O26/O23)*100)-100 -> 31.66666667 | R26: 210 | S26: =((R26/R23)*100)-100 -> 22.09302326 | U26: =AVERAGE(D26,G26,J26,P26,S26) -> 30.49750943 | V26: =STDEV(D26,G26,J26,P26,S26)/SQRT(COUNT(D26,G26,J26,P26,S26)) -> 12.981787
B27: 30 | C27: 23 | D27: =((C27/C23)*100)-100 -> 4.545454545 | I27: 570 | J27: =((I27/I23)*100)-100 -> 70.65868263 | O27: 101 | P27: =((O27/O23)*100)-100 -> 68.33333333 | R27: 230 | S27: =((R27/R23)*100)-100 -> 33.72093023 | U27: =AVERAGE(D27,J27,P27,S27) -> 44.31460019 | V27: =STDEV(D27,J27,P27,S27)/SQRT(COUNT(D27,J27,P27,S27)) -> 15.71814506
B28: 100 | C28: 29 | D28: =((C28/C23)*100)-100 -> 31.81818182 | F28: 1041 | G28: =((F28/F23)*100)-100 -> 44.78442281 | I28: 660 | J28: =((I28/I23)*100)-100 -> 97.60479042 | L28: 205 | M28: =((L28/L23)*100)-100 -> 93.39622642 | O28: 130 | P28: =((O28/O23)*100)-100 -> 116.6666667 | R28: 247 | S28: =((R28/R23)*100)-100 -> 43.60465116 | U28: =AVERAGE(D28,G28,J28,M28,P28,S28) -> 71.31248988 | V28: =STDEV(D28,G28,J28,M28,P28,S28)/SQRT(COUNT(D28,G28,J28,M28,P28,S28)) -> 14.45365107
B29: 300 | C29: 47 | D29: =((C29/C23)*100)-100 -> 113.6363636 | F29: 1130 | G29: =((F29/F23)*100)-100 -> 57.16272601 | I29: 731 | J29: =((I29/I23)*100)-100 -> 118.8622754 | L29: 175 | M29: =((L29/L23)*100)-100 -> 65.09433962 | O29: 148 | P29: =((O29/O23)*100)-100 -> 146.6666667 | R29: 322 | S29: =((R29/R23)*100)-100 -> 87.20930233 | U29: =AVERAGE(D29,G29,J29,M29,P29,S29) -> 98.10527895 | V29: =STDEV(D29,G29,J29,M29,P29,S29)/SQRT(COUNT(D29,G29,J29,M29,P29,S29)) -> 14.0416202
B30: 1000 | C30: 55 | D30: =((C30/C23)*100)-100 -> 150 | F30: 1227 | G30: =((F30/F23)*100)-100 -> 70.65368567 | I30: 750 | J30: =((I30/I23)*100)-100 -> 124.5508982 | O30: 140 | P30: =((O30/O23)*100)-100 -> 133.3333333 | R30: 272 | S30: =((R30/R23)*100)-100 -> 58.13953488 | U30: =AVERAGE(D30,G30,J30,P30,S30) -> 107.3354904 | V30: =STDEV(D30,G30,J30,P30,S30)/SQRT(COUNT(D30,G30,J30,P30,S30)) -> 18.1084446
B33: α1β2γ2 | U33: α1β2γ2
B34: Conc nM | C34: cell1 | F34: cell2 | I34: cell3 | L34: cell4 | O34: cell5 | U34: I GABA potentiation (%)
C35: I GABA (pA) | D35: I GABA potentiation (%) | F35: I GABA (pA) | G35: I GABA potentiation (%) | I35: I GABA (pA) | J35: I GABA potentiation (%) | L35: I GABA (pA) | M35: I GABA potentiation (%) | O35: I GABA (pA) | P35: I GABA potentiation (%) | U35: mean | V35: SEM
B36: 0 | C36: 30 | D36: =((C36/C36)*100)-100 -> 0 | F36: 170 | G36: =((F36/F36)*100)-100 -> 0 | I36: 235 | J36: =((I36/I36)*100)-100 -> 0 | L36: 644 | M36: =((L36/L36)*100)-100 -> 0 | O36: 130 | P36: =((O36/O36)*100)-100 -> 0
B39: 10 | C39: 32 | D39: =((C39/C36)*100)-100 -> 6.666666667 | F39: 128 | G39: =((F39/F36)*100)-100 -> -24.70588235 | I39: 252 | J39: =((I39/I36)*100)-100 -> 7.234042553 | L39: 632 | M39: =((L39/L36)*100)-100 -> -1.863354037 | O39: 110 | P39: =((O39/O36)*100)-100 -> -15.38461538 | U39: =AVERAGE(D39,G39,J39,M39,P39) -> -5.610628511 | V39: =STDEV(D39,G39,J39,M39,P39)/SQRT(COUNT(D39,G39,J39,M39,P39)) -> 6.284580958
B40: 30 | F40: 199 | G40: =((F40/F36)*100)-100 -> 17.05882353 | I40: 296 | J40: =((I40/I36)*100)-100 -> 25.95744681 | L40: 554 | M40: =((L40/L36)*100)-100 -> -13.97515528 | O40: 85 | P40: =((O40/O36)*100)-100 -> -34.61538462 | U40: =AVERAGE(G40,J40,M40,P40) -> -1.393567389 | V40: =STDEV(G40,J40,M40,P40)/SQRT(COUNT(G40,J40,M40,P40)) -> 13.99569637
B41: 100 | C41: 40 | D41: =((C41/C36)*100)-100 -> 33.33333333 | F41: 177 | G41: =((F41/F36)*100)-100 -> 4.117647059 | L41: 552 | M41: =((L41/L36)*100)-100 -> -14.28571429 | O41: 80 | P41: =((O41/O36)*100)-100 -> -38.46153846 | U41: =AVERAGE(D41,G41,M41,P41) -> -3.824068089 | V41: =STDEV(D41,G41,M41,P41)/SQRT(COUNT(D41,G41,M41,P41)) -> 15.14635191
B42: 300 | C42: 29 | D42: =((C42/C36)*100)-100 -> -3.333333333 | F42: 205 | G42: =((F42/F36)*100)-100 -> 20.58823529 | I42: 264 | J42: =((I42/I36)*100)-100 -> 12.34042553 | L42: 550 | M42: =((L42/L36)*100)-100 -> -14.59627329 | U42: =AVERAGE(D42,G42,J42,M42) -> 3.74976355 | V42: =STDEV(D42,G42,J42,M42)/SQRT(COUNT(D42,G42,J42,M42)) -> 7.874436134
B43: 1000 | C43: 37 | D43: =((C43/C36)*100)-100 -> 23.33333333 | F43: 177 | G43: =((F43/F36)*100)-100 -> 4.117647059 | I43: 233 | J43: =((I43/I36)*100)-100 -> -0.8510638298 | L43: 570 | M43: =((L43/L36)*100)-100 -> -11.49068323 | U43: =AVERAGE(D43,G43,J43,M43) -> 3.777308333 | V43: =STDEV(D43,G43,J43,M43)/SQRT(COUNT(D43,G43,J43,M43)) -> 7.286330464
B47: α3β3γ2 | U47: α3β3γ2
B48: Conc nM | C48: cell1 | F48: cell2 | I48: cell3 | L48: cell4 | O48: cell5 | U48: I GABA potentiation (%)
C49: I GABA (pA) | D49: I GABA potentiation (%) | F49: I GABA (pA) | G49: I GABA potentiation (%) | I49: I GABA (pA) | J49: I GABA potentiation (%) | L49: I GABA (pA) | M49: I GABA potentiation (%) | O49: I GABA (pA) | P49: I GABA potentiation (%) | U49: mean | V49: SEM
B50: 0 | C50: 62 | D50: =((C50/C50)*100)-100 -> 0 | F50: 730 | G50: =((F50/F50)*100)-100 -> 0 | I50: 280 | J50: =((I50/I50)*100)-100 -> 0 | L50: 856 | M50: =((L50/L50)*100)-100 -> 0 | O50: 132 | P50: =((O50/O50)*100)-100 -> 0
B52: 3 | I52: 356 | J52: =((I52/I50)*100)-100 -> 27.14285714 | L52: 1005 | M52: =((L52/L50)*100)-100 -> 17.40654206 | O52: 150 | P52: =((O52/O50)*100)-100 -> 13.63636364 | U52: =AVERAGE(J52,M52,P52) -> 19.39525428 | V52: =STDEV(J52,M52,P52)/SQRT(COUNT(J52,M52,P52)) -> 4.023786523
B53: 10 | C53: 79 | D53: =((C53/C50)*100)-100 -> 27.41935484 | I53: 377 | J53: =((I53/I50)*100)-100 -> 34.64285714 | L53: 1042 | M53: =((L53/L50)*100)-100 -> 21.72897196 | O53: 153 | P53: =((O53/O50)*100)-100 -> 15.90909091 | U53: =AVERAGE(J53,M53,P53) -> 24.09364 | V53: =STDEV(J53,M53,P53)/SQRT(COUNT(J53,M53,P53)) -> 5.535709546
B54: 30 | C54: 91 | D54: =((C54/C50)*100)-100 -> 46.77419355 | F54: 952 | G54: =((F54/F50)*100)-100 -> 30.4109589 | I54: 506 | J54: =((I54/I50)*100)-100 -> 80.71428571 | L54: 1588 | M54: =((L54/L50)*100)-100 -> 85.51401869 | O54: 160 | P54: =((O54/O50)*100)-100 -> 21.21212121 | U54: =AVERAGE(D54,G54,J54,M54,P54) -> 52.92511561 | V54: =STDEV(D54,G54,J54,M54,P54)/SQRT(COUNT(D54,G54,J54,M54,P54)) -> 13.00905394
B55: 100 | C55: 109 | D55: =((C55/C50)*100)-100 -> 75.80645161 | F55: 1000 | G55: =((F55/F50)*100)-100 -> 36.98630137 | I55: 687 | J55: =((I55/I50)*100)-100 -> 145.3571429 | L55: 1860 | M55: =((L55/L50)*100)-100 -> 117.2897196 | O55: 205 | P55: =((O55/O50)*100)-100 -> 55.3030303 | U55: =AVERAGE(D55,G55,J55,M55,P55) -> 86.14852915 | V55: =STDEV(D55,G55,J55,M55,P55)/SQRT(COUNT(D55,G55,J55,M55,P55)) -> 19.93835711
B56: 300 | C56: 114 | D56: =((C56/C50)*100)-100 -> 83.87096774 | F56: 1169 | G56: =((F56/F50)*100)-100 -> 60.1369863 | I56: 841 | J56: =((I56/I50)*100)-100 -> 200.3571429 | L56: 2121 | M56: =((L56/L50)*100)-100 -> 147.7803738 | O56: 245 | P56: =((O56/O50)*100)-100 -> 85.60606061 | U56: =AVERAGE(D56,G56,J56,M56,P56) -> 115.5503063 | V56: =STDEV(D56,G56,J56,M56,P56)/SQRT(COUNT(D56,G56,J56,M56,P56)) -> 25.6922665
B57: 1000 | C57: 116 | D57: =((C57/C50)*100)-100 -> 87.09677419 | F57: 1383 | G57: =((F57/F50)*100)-100 -> 89.45205479 | I57: 828 | J57: =((I57/I50)*100)-100 -> 195.7142857 | L57: 1910 | M57: =((L57/L50)*100)-100 -> 123.1308411 | O57: 200 | P57: =((O57/O50)*100)-100 -> 51.51515152 | U57: =AVERAGE(D57,G57,J57,M57,P57) -> 109.3818215 | V57: =STDEV(D57,G57,J57,M57,P57)/SQRT(COUNT(D57,G57,J57,M57,P57)) -> 24.37693618
B60: α5β2γ2 | U60: α5β2γ2
B61: Conc nM | C61: cell1 | F61: cell2 | I61: cell3 | L61: cell4 | O61: cell5 | U61: I GABA potentiation (%)
C62: I GABA (pA) | D62: I GABA potentiation (%) | F62: I GABA (pA) | G62: I GABA potentiation (%) | I62: I GABA (pA) | J62: I GABA potentiation (%) | L62: I GABA (pA) | M62: I GABA potentiation (%) | O62: I GABA (pA) | P62: I GABA potentiation (%) | U62: mean | V62: SEM
B63: 0 | C63: 31 | D63: =((C63/C63)*100)-100 -> 0 | F63: 125 | G63: =((F63/F63)*100)-100 -> 0 | I63: 125 | J63: =((I63/I63)*100)-100 -> 0 | L63: 101 | M63: =((L63/L63)*100)-100 -> 0 | O63: 271 | P63: =((O63/O63)*100)-100 -> 0
B65: 3 | C65: 32 | D65: =((C65/C63)*100)-100 -> 3.225806452 | F65: 131 | G65: =((F65/F63)*100)-100 -> 4.8 | U65: =AVERAGE(D65,G65) -> 4.012903226 | V65: =STDEV(D65,G65)/SQRT(COUNT(D65,G65)) -> 0.7870967742
B66: 10 | C66: 28 | D66: =((C66/C63)*100)-100 -> -9.677419355 | F66: 135 | G66: =((F66/F63)*100)-100 -> 8 | I66: 124 | J66: =((I66/I63)*100)-100 -> -0.8 | O66: 272 | P66: =((O66/O63)*100)-100 -> 0.36900369 | U66: =AVERAGE(D66,G66,J66,P66) -> -0.5271039162 | V66: =STDEV(D66,G66,J66,P66)/SQRT(COUNT(D66,G66,J66,P66)) -> 3.620741809
B67: 30 | C67: 45 | D67: =((C67/C63)*100)-100 -> 45.16129032 | F67: 132 | G67: =((F67/F63)*100)-100 -> 5.6 | I67: 130 | J67: =((I67/I63)*100)-100 -> 4 | O67: 272 | P67: =((O67/O63)*100)-100 -> 0.36900369 | U67: =AVERAGE(D67,G67,J67,P67) -> 13.7825735 | V67: =STDEV(D67,G67,J67,P67)/SQRT(COUNT(D67,G67,J67,P67)) -> 10.51665733
B68: 100 | C68: 40 | D68: =((C68/C63)*100)-100 -> 29.03225806 | F68: 130 | G68: =((F68/F63)*100)-100 -> 4 | I68: 119 | J68: =((I68/I63)*100)-100 -> -4.8 | L68: 90 | M68: =((L68/L63)*100)-100 -> -10.89108911 | O68: 279 | P68: =((O68/O63)*100)-100 -> 2.95202952 | U68: =AVERAGE(D68,G68,J68,M68,P68) -> 4.058639695 | V68: =STDEV(D68,G68,J68,M68,P68)/SQRT(COUNT(D68,G68,J68,M68,P68)) -> 6.807641029
B69: 300 | C69: 45 | D69: =((C69/C63)*100)-100 -> 45.16129032 | F69: 145 | G69: =((F69/F63)*100)-100 -> 16 | I69: 146 | J69: =((I69/I63)*100)-100 -> 16.8 | L69: 110 | M69: =((L69/L63)*100)-100 -> 8.910891089 | O69: 375 | P69: =((O69/O63)*100)-100 -> 38.37638376 | U69: =AVERAGE(D69,G69,J69,M69,P69) -> 25.04971304 | V69: =STDEV(D69,G69,J69,M69,P69)/SQRT(COUNT(D69,G69,J69,M69,P69)) -> 7.044474213
B70: 1000 | C70: 52 | D70: =((C70/C63)*100)-100 -> 67.74193548 | F70: 170 | G70: =((F70/F63)*100)-100 -> 36 | I70: 142 | J70: =((I70/I63)*100)-100 -> 13.6 | L70: 130 | M70: =((L70/L63)*100)-100 -> 28.71287129 | O70: 403 | P70: =((O70/O63)*100)-100 -> 48.70848708 | U70: =AVERAGE(D70,G70,J70,M70,P70) -> 38.95265877 | V70: =STDEV(D70,G70,J70,M70,P70)/SQRT(COUNT(D70,G70,J70,M70,P70)) -> 9.16604437

Sheet 4b
D2: Lumbar DRG CULTURE
B3: From MrgprA3GFP-CRE_dTom Tg/+ 6-8 weeks
B4: patched within 48-72h
D5: GABA (5-20 µM)
C6: CELL | D6: Ctrl | E6: TPO023B (1µM)
D7: I GABA (pA) | E7: I GABA (pA)
C8: 1 | D8: -10.447 | E8: -11.975
C9: 2 | D9: -55.07333333 | E9: -82.88
C10: 3 | D10: -18.06 | E10: -19
C11: 4 | D11: -19.22666667 | E11: -20.56
C12: 5 | D12: -26.13333333 | E12: -29.6
C13: 6 | D13: -11.25 | E13: -10.22
C14: 7 | D14: -14.28666667 | E14: -26.83
C15: 8 | D15: -29.45666667 | E15: -33.36
C16: 9 | D16: -27.23 | E16: -32.14
C17: 10 | D17: -19.78 | E17: -20.86
A20: mean | D20: =AVERAGE(D8:D17) -> -23.09436667 | E20: =AVERAGE(E8:E17) -> -28.7425
A21: SD | D21: =STDEV(D8:D17) -> 12.98966005 | E21: =STDEV(E8:E17) -> 20.59223603
A22: n | D22: =COUNT(D8:D17) -> 10 | E22: =COUNT(E8:E17) -> 10
A23: SEM | D23: =D21/SQRT(D22) -> 4.107691179 | E23: =E21/SQRT(E22) -> 6.511836797
A25: ttest | E25: =_xlfn.T.TEST(D8:D17,E8:E17,2,1) -> 0.06837433924

Sheet 4c
A1: yellow | B1: CTRL
A2: green | B2: TPAO23B (8-11 min)
D3: Tau W (ms) | L3: Normalization tW | T3: % change of Tau values normalized
A4: Sweep | B4: ms | C4: time (min) | D4: CELL1 | E4: CELL2 | F4: CELL3 | G4: CELL4 | H4: CELL5 | I4: CELL6 | J4: CELL7 | L4: CELL1 | M4: CELL2 | N4: CELL3 | O4: CELL4 | P4: CELL5 | Q4: CELL6 | R4: CELL7 | T4: CELL1 | U4: CELL2 | V4: CELL3 | W4: CELL4 | X4: CELL5 | Y4: CELL6 | Z4: CELL7
A5: 1 | B5: 20 | C5: =B5/60 -> 0.3333333333 | D5: 85.955571 | E5: 91.02264942 | F5: 23.0217179 | G5: 180.8616698 | H5: 200.0115011 | J5: 74.33197344 | L5: =D5/$D$15 -> 0.7939807425 | M5: =E5/$E$15 -> 1.009808905 | N5: =F5/$F$15 -> 0.4840998594 | O5: =G5/$G$15 -> 1.321119949 | P5: =H5/$H$15 -> 1.841212998 | R5: =J5/$J$15 -> 0.7381221752 | T5: =AVERAGE(L5:L14) -> 1 | U5: 1 | V5: 1 | W5: 1 | X5: 1 | Y5: 1 | Z5: 1 | AA5: CTRL
A6: 2 | B6: 40 | C6: 0.6666666667 | D6: 164.486811 | E6: 82.47139557 | F6: 39.46186734 | G6: 189.8491814 | H6: 106.8318163 | I6: 194.4399386 | J6: 157.2567329 | L6: 1.519382151 | M6: 0.9149409533 | N6: 0.8298027329 | O6: =G6/$G$15 -> 1.386770017 | P6: 0.9834440906 | Q6: =I6/$I$15 -> 1.277366231 | R6: 1.561571372
A7: 3 | B7: 60 | C7: 1 | D7: 102.1799869 | E7: 73.21086277 | F7: 60.17990728 | G7: 127.9179226 | H7: 103.3510425 | I7: 155.864256 | J7: 95.97204112 | L7: 0.9438473962 | M7: 0.8122042329 | N7: 1.265460935 | O7: =G7/$G$15 -> 0.9343876988 | P7: 0.9514017035 | Q7: 1.023944662 | R7: 0.9530097005 | T7: =AVERAGE(L30:L39) -> 1.385905614 | U7: 1.556212438 | V7: 1.836846116 | W7: 1.555005929 | X7: 1.493964206 | Y7: 1.049240431 | Z7: 1.148189739 | AA7: TPA023B
A8: 4 | B8: 80 | C8: 1.333333333 | D8: 80.84937508 | E8: 51.72441724 | F8: 55.79550001 | G8: 124.2029566 | H8: 83.64182065 | I8: 159.6444137 | J8: 65.84716378 | L8: 0.7468142682 | M8: 0.5738327489 | N8: 1.173265776 | O8: =G8/$G$15 -> 0.9072514031 | P8: 0.7699677596 | Q8: 1.048778273 | R8: 0.653867367
A9: 5 | B9: 100 | C9: 1.666666667 | D9: 83.21469674 | E9: 90.92727375 | F9: 31.46285667 | G9: 187.69702 | H9: 89.88277667 | I9: 174.83852 | J9: 54.69846739 | L9: 0.7686629957 | M9: 1.008750803 | N9: 0.661599823 | O9: =G9/$G$15 -> 1.371049365 | P9: 0.8274191025 | Q9: 1.148595412 | R9: 0.5431599601 | T9: =(T7-T5)/T5*100 -> 38.59056144 | U9: 55.62124375 | V9: 83.68461161 | W9: 55.50059285 | X9: 49.39642061 | Y9: 4.924043073 | Z9: 14.81897387 | AA9: %change
A10: 6 | B10: 120 | C10: 2 | D10: 76.92867542 | E10: 71.34644799 | F10: 41.74823876 | H10: 101.8215294 | I10: 122.8069053 | J10: 151.6911023 | L10: 0.7105983488 | M10: 0.791520341 | N10: 0.8778804693 | P10: 0.9373217158 | Q10: 0.8067755774 | R10: 1.506304234
A11: 7 | B11: 140 | C11: 2.333333333 | D11: 116.3520755 | E11: 88.82552621 | F11: 40.43677723 | G11: 89.89784707 | H11: 98.39962247 | I11: 105.7224479 | J11: 101.457622 | L11: 1.074756484 | M11: 0.9854339322 | N11: 0.8503031033 | O11: =G11/$G$15 -> 0.6566667183 | P11: 0.9058212299 | Q11: 0.6945398452 | R11: 1.007481937
A12: 8 | B12: 160 | C12: 2.666666667 | D12: 160.7409746 | E12: 79.8908824 | F12: 43.06507042 | G12: 100.5393239 | H12: 83.98992672 | J12: 73.09502277 | L12: 1.484781461 | M12: 0.8863126373 | N12: 0.9055707583 | O12: =G12/$G$15 -> 0.7343983203 | P12: 0.7731722624 | R12: 0.7258391605 | T12: =AVERAGE(T9:Z9) -> 43.21949246 | U12: =_xlfn.STDEV.S(T9:Z9)/SQRT(7) -> 10.08861578
A13: 9 | B13: 180 | C13: 3 | D13: 84.85643768 | E13: 149.1146715 | F13: 63.43538035 | G13: 163.2757803 | H13: 103.8502241 | J13: 70.74525904 | L13: 0.7838279312 | M13: 1.654284116 | N13: 1.333916906 | O13: =G13/$G$15 -> 1.192662275 | P13: 0.9559969374 | R13: 0.7025058272
A14: 10 | B14: 200 | C14: 3.333333333 | D14: 127.0255195 | E14: 122.8507687 | F14: 76.94989509 | G14: 67.86067406 | H14: 114.5226354 | J14: 161.9462128 | L14: 1.173348221 | M14: 1.36291133 | N14: 1.618099638 | O14: =G14/$G$15 -> 0.4956942528 | P14: 1.0542422 | R14: 1.608138266
B15: AVG | C15: Average | D15: =AVERAGE(D5:D14) -> 108.2590123 | E15: 90.13848956 | F15: 47.55572111 | G15: 136.900264 | H15: 108.6302895 | I15: 152.2194136 | J15: 100.7041597
A17: 1 | B17: 220 | C17: =B17/60 -> 3.666666667 | D17: 93.09111793 | E17: 115.4049452 | F17: 73.37714966 | G17: 62.2772385 | I17: 165.6127462 | L17: =D17/$D$15 -> 0.8598925476 | M17: =E17/$E$15 -> 1.280307067 | N17: =F17/$F$15 -> 1.542972075 | O17: =G17/$G$15 -> 0.4549095575 | Q17: =I17/$I$15 -> 1.08798702
A18: 2 | B18: 240 | C18: 4 | D18: 92.36081941 | E18: 142.1973798 | F18: 121.3856115 | G18: 64.84371995 | H18: 91.8747555 | J18: 61.13982735 | L18: 0.8531467026 | M18: 1.577543405 | N18: 2.55249229 | O18: 0.4736566465 | P18: =H18/$H$15 -> 0.8457563346 | R18: =J18/$J$15 -> 0.6071231566
A19: 3 | B19: 260 | C19: 4.333333333 | D19: 113.3259816 | E19: 230.1432807 | F19: 25.59371773 | G19: 133.9418258 | H19: 91.39241841 | I19: 140.8348151 | J19: 81.30750716 | L19: 1.046804134 | M19: 2.553218739 | N19: 0.5381837797 | O19: 0.9783898286 | P19: 0.8413161634 | Q19: =I19/$I$15 -> 0.9252092869 | R19: 0.8073897579
A20: 4 | B20: 280 | C20: 4.666666667 | D20: 174.5100116 | E20: 77.00580105 | F20: 61.17672872 | G20: 124.7077199 | H20: 101.5270134 | J20: 83.60885612 | L20: 1.611967519 | M20: 0.8543054296 | N20: 1.28642206 | O20: 0.9109384912 | P20: 0.9346105384 | R20: 0.830242329
A21: 5 | B21: 300 | C21: 5 | D21: 105.0099897 | E21: 100.0854138 | F21: 54.43898792 | G21: 124.5038615 | H21: 124.1409926 | J21: 154.0349398 | L21: 0.9699884324 | M21: 1.110351574 | N21: 1.144741088 | O21: 0.9094493894 | P21: 1.14278433 | R21: 1.529578721
A22: 6 | B22: 320 | C22: 5.333333333 | D22: 70.6089986 | E22: 183.8799886 | F22: 53.38459216 | G22: 138.9858284 | H22: 116.5754086 | J22: 100.6785148 | L22: 0.6522228226 | M22: 2.039971931 | N22: 1.122569292 | O22: 1.015234189 | P22: 1.073139077 | R22: 0.9997453438
A23: 7 | B23: 340 | C23: 5.666666667 | D23: 123.1937749 | E23: 135.5820458 | F23: 45.01247578 | G23: 89.26880514 | H23: 75.05628579 | I23: 100.6317761 | J23: 54.23879178 | L23: 1.137953989 | M23: 1.504152626 | N23: 0.9465207283 | O23: 0.6520718262 | P23: 0.6909333126 | Q23: =I23/$I$15 -> 0.6610968584 | R23: 0.5385953462
A24: 8 | B24: 360 | C24: 6 | D24: 75.72527337 | E24: 294.853434 | F24: 25.21638993 | G24: 298.573377 | H24: 103.7276612 | I24: 143.1020961 | J24: 125.2877699 | L24: 0.6994823962 | M24: 3.271115763 | N24: 0.5302493442 | O24: 2.180955452 | P24: 0.9548686806 | Q24: =I24/$I$15 -> 0.9401041083 | R24: 1.244117127
A25: 9 | B25: 380 | C25: 6.333333333 | D25: 77.48501131 | E25: 72.84714338 | F25: 81.14895833 | G25: 327.3812781 | H25: 100.3935195 | I25: 162.2528348 | J25: 79.50368256 | L25: 0.7157372826 | M25: 0.8081691155 | N25: 1.706397389 | O25: 2.391385294 | P25: 0.9241761204 | Q25: =I25/$I$15 -> 1.065914202 | R25: 0.7894776419 | T25: % change of Tau values
A26: 10 | B26: 400 | C26: 6.666666667 | D26: 159.8379227 | E26: 75.34842275 | F26: 58.49064711 | G26: 372.0866569 | H26: 93.42444163 | I26: 87.6712659 | J26: 105.9579445 | L26: 1.476439876 | M26: 0.8359184087 | N26: 1.229939232 | O26: 2.717939659 | P26: 0.8600220255 | Q26: =I26/$I$15 -> 0.5759532496 | R26: 1.052170484 | T26: CELL1 | U26: CELL2 | V26: CELL3 | W26: CELL4 | X26: CELL5 | Y26: CELL6 | Z26: CELL7
A27: 11 | B27: 420 | C27: 7 | D27: 120.4275063 | E27: 51.35938644 | F27: 55.95916515 | G27: 73.46412886 | H27: 89.47383342 | J27: 104.3051677 | L27: 1.112401671 | M27: 0.5697830826 | N27: 1.17670732 | O27: 0.5366251805 | P27: 0.8236545609 | R27: 1.035758284 | T27: =AVERAGE(D5:D14) -> 108.2590123 | U27: 90.13848956 | V27: 47.55572111 | W27: 136.900264 | X27: 108.6302895 | Y27: 152.2194136 | Z27: 100.7041597 | AA27: CTRL
A28: 12 | B28: 440 | C28: 7.333333333 | D28: 184.8813839 | E28: 67.09042492 | F28: 144.4538789 | G28: 184.9100593 | H28: 63.36450676 | I28: 183.1557263 | J28: 100.686957 | L28: 1.707768988 | M28: 0.7443038512 | N28: 3.037570991 | O28: 1.350691766 | P28: 0.5833042243 | Q28: =I28/$I$15 -> 1.203235001 | R28: 0.9998291753 | AC28: ttest
A29: 13 | B29: 460 | C29: 7.666666667 | D29: 128.0717263 | E29: 90.04731875 | F29: 119.1825814 | G29: 257.020602 | H29: 90.0422963 | J29: 104.0899965 | L29: 1.183012144 | M29: 0.9989885474 | N29: 2.506167052 | O29: 1.877429557 | P29: 0.8288875662 | R29: 1.033621617 | T29: =AVERAGE(D30:D39) -> 150.036773 | U29: 140.2746386 | V29: 87.35254161 | W29: 212.8807221 | X29: 162.2897643 | Y29: 159.7147631 | Z29: 115.6274829 | AA29: TPA023B | AC29: =TTEST(T27:Z27,T29:Z29,2,1) -> 0.003715568942
A30: 14 | B30: 480 | C30: 8 | D30: 266.1661311 | E30: 105.7989608 | F30: 100.7827161 | G30: 155.4716001 | H30: 194.5948642 | I30: 200.4527657 | J30: 246.5239953 | L30: 2.458604834 | M30: 1.173737893 | N30: 2.119255344 | O30: 1.135655956 | P30: 1.791349954 | Q30: =I30/$I$15 -> 1.316867284 | R30: 2.448002108
A31: 15 | B31: 500 | C31: 8.333333333 | D31: 139.7366395 | E31: 177.1475341 | F31: 101.2193407 | I31: 149.5511242 | J31: 76.29031907 | L31: 1.290762187 | M31: 1.965281812 | N31: 2.128436671 | Q31: 0.9824707683 | R31: 0.7575686969 | T31: =(T29-T27)/T27*100 -> 38.59056144 | U31: 55.62124375 | V31: 83.68461161 | W31: 55.50059285 | X31: 49.39642061 | Y31: 4.924043073 | Z31: 14.81897387 | AA31: %change
A32: 16 | B32: 520 | C32: 8.666666667 | D32: 108.0464002 | E32: 96.07694764 | F32: 116.7189281 | G32: 271.158577 | H32: 90.49296531 | I32: 231.8068784 | J32: 209.9198801 | L32: 0.9980360789 | M32: 1.065881491 | N32: 2.454361439 | O32: =G32/$G$15 -> 1.980701637 | P32: =H32/$H$15 -> 0.8330362158 | Q32: 1.522847007 | R32: 2.084520447
A33: 17 | B33: 540 | C33: 9 | D33: 130.4264702 | E33: 89.03049054 | F33: 84.35864217 | G33: 130.7599136 | H33: 153.4006141 | I33: 101.7647927 | J33: 73.25139563 | L33: 1.204763163 | M33: 0.9877078147 | N33: 1.773890506 | O33: 0.9551472718 | P33: =H33/$H$15 -> 1.412134818 | Q33: 0.6685401706 | R33: 0.727391955
A34: 18 | B34: 560 | C34: 9.333333333 | D34: 92.14353159 | E34: 219.4950833 | F34: 78.51952198 | G34: 331.0989221 | H34: 105.0115665 | I34: 166.3876412 | J34: 69.30550737 | L34: 0.8511395919 | M34: 2.435087213 | N34: 1.651105696 | O34: 2.418541152 | P34: =H34/$H$15 -> 0.9666877159 | Q34: 1.093077665 | R34: 0.6882089831 | T34: =AVERAGE(T31:Z31) -> 43.21949246 | U34: =_xlfn.STDEV.S(T31:Z31)/SQRT(7) -> 10.08861578
A35: 19 | B35: 580 | C35: 9.666666667 | D35: 115.2201503 | E35: 308.6544176 | F35: 68.22088426 | G35: 202.9301725 | I35: 125.7371001 | J35: 89.56579901 | L35: 1.064300771 | M35: 3.424224426 | N35: 1.43454631 | O35: 1.482321265 | Q35: 0.8260253875 | R35: 0.889395227
A36: 20 | B36: 600 | C36: 10 | D36: 142.6777584 | E36: 112.0240688 | F36: 94.99227604 | G36: 131.8670354 | H36: 289.936623 | I36: 119.3570176 | L36: 1.317929614 | M36: 1.242799489 | N36: 1.997494178 | O36: 0.9632343399 | P36: =H36/$H$15 -> 2.669021911 | Q36: 0.7841116634
A37: 1 | B37: 620 | C37: 10.33333333 | D37: 143.686683 | E37: 83.7017395 | F37: 88.45530686 | G37: 268.3191624 | H37: 154.6063462 | I37: 165.3367437 | J37: 108.5786955 | L37: 1.327249159 | M37: 0.928590438 | N37: 1.860035024 | O37: 1.959960884 | P37: 1.423234228 | Q37: 1.086173832 | R37: =J37/$J$15 -> 1.078194742
A38: 2 | B38: 640 | C38: 10.66666667 | D38: 116.1597809 | E38: 126.0022127 | F38: 54.10459108 | G38: 310.2459656 | H38: 122.0294914 | I38: 230.3801956 | J38: 75.8142294 | L38: 1.072980239 | M38: 1.397873576 | N38: 1.137709403 | O38: 2.2662189 | P38: 1.123346831 | Q38: 1.513474466 | R38: 0.7528410901
A39: 3 | B39: 660 | C39: 11 | D39: 246.104185 | E39: 84.81493046 | F39: 86.15320884 | G39: 114.0751501 | H39: 188.2456433 | I39: 106.3733714 | J39: 91.39752443 | L39: 2.273290506 | M39: 0.9409402229 | N39: 1.811626589 | O39: 0.833271951 | P39: 1.732901975 | Q39: 0.6988160638 | R39: 0.9075844003
A40: 4 | B40: 680 | C40: 11.33333333 | D40: 109.7295854 | E40: 79.04998431 | F40: 61.13748283 | G40: 136.9630121 | H40: 162.7816157 | I40: 117.7981257 | J40: 79.44565796 | L40: 1.01358384 | M40: 0.8769836803 | N40: 1.285596799 | O40: 1.000458349 | P40: 1.498491962 | Q40: 0.7738705789 | R40: 0.7889014531 | U40: tau (ms) | X40: Ampl (pA)
A41: 5 | B41: 700 | C41: 11.66666667 | D41: 118.3519389 | E41: 69.58423352 | F41: 87.79625192 | G41: 295.3642444 | H41: 109.110346 | I41: 158.0729198 | J41: 172.6699308 | L41: 1.093229435 | M41: 0.7719702633 | N41: 1.846176441 | O41: 2.15751406 | P41: 1.004419177 | Q41: 1.0384544 | R41: 1.714625605 | U41: Ctrl | V41: TPA023B | X41: Ctrl | Y41: TPA023B
A42: 6 | B42: 720 | C42: 12 | D42: 90.96140285 | F42: 62.69780928 | G42: 370.7170324 | H42: 266.139682 | I42: 219.9840759 | J42: 88.5677651 | L42: 0.8402201431 | N42: 1.318407288 | O42: 2.707935117 | P42: 2.449958323 | Q42: 1.445177528 | R42: 0.879484674 | T42: CELL1 | U42: 108.259 | V42: 150.0368 | X42: -89.2938 | Y42: -74.08745
A43: 7 | B43: 740 | C43: 12.33333333 | D43: 257.3330565 | E43: 149.276145 | F43: 47.78466078 | G43: 148.8370365 | H43: 101.9039846 | J43: 90.18812899 | L43: 2.377012786 | M43: =E43/$E$15 -> 1.65607551 | N43: 1.004814135 | O43: 1.087193203 | P43: 0.9380807601 | R43: 0.8955750112 | T43: CELL2 | U43: 90.13849 | V43: 140.2746 | X43: -93.5438 | Y43: -113.6874
A44: 8 | B44: 760 | C44: 12.66666667 | D44: 152.4807737 | E44: 165.3984027 | F44: 43.54001725 | G44: 171.5954012 | H44: 79.40971684 | I44: 125.5379429 | L44: 1.408481109 | M44: 1.834936479 | N44: 0.9155579232 | O44: 1.253433676 | P44: 0.7310089773 | Q44: =I44/$I$15 -> 0.8247170315 | T44: CELL3 | U44: 47.55572 | V44: 87.35254 | X44: -148.2939 | Y44: -110.6812
A45: 9 | B45: 780 | C45: 13 | D45: 112.128559 | E45: 154.5706504 | F45: 53.28330725 | G45: 98.17342544 | H45: 76.81437572 | I45: 198.3607294 | L45: 1.035743414 | M45: 1.714812963 | N45: 1.120439476 | O45: 0.7171164071 | P45: 0.7071174721 | Q45: =I45/$I$15 -> 1.303123726 | T45: CELL4 | U45: 136.9003 | V45: 212.8807 | X45: -110.6237 | Y45: -97.59352
A46: 10 | B46: 800 | C46: 13.33333333 | D46: 234.4389034 | E46: 119.2579868 | F46: 67.59421601 | G46: 58.14618533 | H46: 157.2392732 | I46: 123.9214422 | L46: 2.165537061 | M46: 1.323052864 | N46: 1.421368753 | O46: 0.4247339168 | P46: 1.447471731 | Q46: =I46/$I$15 -> 0.8140974875 | T46: CELL5 | U46: 108.6303 | V46: 162.2898 | X46: -62.26255 | Y46: -88.39375
A47: 11 | B47: 820 | C47: 13.66666667 | D47: 122.6340918 | E47: 133.9814917 | G47: 142.8812078 | H47: 142.7854668 | I47: 235.4402059 | L47: 1.132784136 | M47: 1.486396015 | O47: 1.043688329 | P47: 1.314416701 | Q47: =I47/$I$15 -> 1.546716023 | T47: CELL6 | U47: 152.2194 | V47: 159.7148 | X47: -110.6655 | Y47: -116.6973
A48: 12 | B48: 840 | C48: 14 | D48: 132.0486428 | E48: 112.5761248 | G48: 345.3972124 | H48: 46.68626383 | L48: 1.219747344 | M48: 1.24892402 | O48: 2.522984269 | P48: 0.4297720648 | T48: CELL7 | U48: 100.7042 | V48: 115.6275 | X48: -114.1515 | Y48: -110.8747
A49: 13 | B49: 860 | C49: 14.33333333 | D49: 182.6704276 | H49: 55.29109086 | I49: 199.5292382 | L49: 1.687346149 | P49: 0.5089841066 | Q49: =I49/$I$15 -> 1.310800203
A50: 14 | B50: 880 | C50: 14.66666667 | D50: 260.216498 | H50: 63.71008289 | I50: 117.840836 | L50: 2.403647441 | P50: 0.5864854376 | Q50: 0.7741511629 | T50: ttest | V50: =TTEST(U42:U48,V42:V48,2,1) -> 0.00371555212 | Y50: =TTEST(X42:X48,Y42:Y48,2,1) -> 0.7825902534
A51: 15 | B51: 900 | C51: 15 | D51: 67.80853164 | H51: 92.61108769 | I51: 151.5310819 | L51: 0.6263546117 | P51: 0.8525346668 | Q51: 0.9954780298
A52: 16 | B52: 920 | C52: 15.33333333 | D52: 95.94457736 | H52: 105.5635573 | I52: 264.4477477 | L52: 0.8862502556 | P52: 0.9717690872 | Q52: 1.737280032
A53: 17 | B53: 940 | C53: 15.66666667 | D53: 171.9157916 | H53: 95.81564678 | I53: 280.6450749 | L53: 1.588004433 | P53: 0.8820343497 | Q53: 1.843687794
A54: 18 | B54: 960 | C54: 16 | D54: 108.0936837 | H54: 102.3572255 | I54: 204.3870497 | L54: 0.9984728421 | P54: 0.9422530854 | Q54: 1.342713422
A55: 19 | B55: 980 | C55: 16.33333333 | D55: 127.0621265 | H55: 93.60849758 | I55: 146.3291119 | L55: 1.173686363 | P55: 0.8617163591 | Q55: 0.9613038733
A56: 20 | B56: 1000 | C56: 16.66666667 | D56: 176.4547582 | H56: 83.29296925 | I56: 94.02406211 | L56: 1.629931351 | P56: 0.7667563956 | Q56: 0.6176877173
P57: 0 | Q57: 0
D63: Ampl (pA) | N63: % Variation of ampl values
C64: time (min) | D64: CELL1 | E64: CELL2 | F64: CELL3 | G64: CELL4 | H64: CELL5 | I64: CELL6 | J64: CELL7
A65: 1 | B65: 20 | C65: =B65/60 -> 0.3333333333 | D65: -74.0625 | E65: -106.063 | F65: -115.063 | G65: -125.257 | H65: -78.5625 | I65: -106.94 | J65: -125.649 | N65: =AVERAGE(D65:D74) -> -89.2938 | O65: -93.5438 | P65: -148.2939 | Q65: -110.62367 | R65: -62.26255 | S65: -110.6655 | T65: -114.15147 | U65: CTRL
A66: 2 | B66: 40 | C66: 0.6666666667 | D66: -64 | E66: -82.8125 | F66: -189.25 | G66: -161.966 | H66: -45 | I66: -115.327 | J66: -117.648
A67: 3 | B67: 60 | C67: 1 | D67: -84.875 | E67: -82.9375 | F67: -91.6875 | G67: -162.799 | H67: -48.75 | I67: -160.699 | J67: -119.922 | N67: =AVERAGE(D88:D97) -> -74.08745 | O67: -113.68745 | P67: -110.68115 | Q67: -97.59352 | R67: -88.39375 | S67: -116.6973 | T67: -110.87467 | U67: TPA023B
A68: 4 | B68: 80 | C68: 1.333333333 | D68: -94.4375 | E68: -74.8125 | F68: -160.937 | G68: -150.208 | H68: -56.125 | I68: -106.933 | J68: -86.0697
A69: 5 | B69: 100 | C69: 1.666666667 | D69: -111 | E69: -68.0625 | F69: -141.875 | G69: -57.5258 | H69: -42.3125 | I69: -136.288 | J69: -112.314 | N69: =(N67-N65)/N65*100 -> -17.0295698 | O69: 21.53392315 | P69: -25.36365285 | Q69: -11.77880828 | R69: 41.96937003 | S69: 5.450479147 | T69: -2.870571881 | U69: %change
A70: 6 | B70: 120 | C70: 2 | D70: -103.375 | E70: -100.375 | F70: -134.938 | G70: -138.229 | H70: -55.0625 | I70: -128.002 | J70: -129.974
A71: 7 | B71: 140 | C71: 2.333333333 | D71: -93.25 | E71: -85.4375 | F71: -209.813 | G71: -64.8113 | H71: -49.4375 | I71: -94.1825 | J71: -98.3483
A72: 8 | B72: 160 | C72: 2.666666667 | D72: -107.813 | E72: -150.875 | F72: -211.063 | G72: -88.0946 | H72: -60.5 | I72: -84.2246 | J72: -98.8057 | N72: =AVERAGE(N69:T69) -> 1.701595644 | O72: =STDEV(N69:T69)/SQRT(7) -> 8.884013514
A73: 9 | B73: 180 | C73: 3 | D73: -75.1875 | E73: -89.125 | F73: -129.375 | G73: -78.3066 | H73: -75.3125 | I73: -105.903 | J73: -144.319
A74: 10 | B74: 200 | C74: 3.333333333 | D74: -84.9375 | E74: -94.9375 | F74: -98.9375 | G74: -79.0394 | H74: -111.563 | I74: -68.1559 | J74: -108.465
A75: 1 | B75: 220 | C75: 3.666666667 | D75: -96.5625 | E75: -65.5625 | F75: -117.188 | G75: -70.2784 | H75: -47.25 | I75: -99.2085 | J75: -81.8222
A76: 2 | B76: 240 | C76: 4 | D76: -54.3125 | E76: -80.625 | F76: -115.25 | G76: -68.9924 | H76: -52.25 | I76: -75.974 | J76: -139.34
A77: 3 | B77: 260 | C77: 4.333333333 | D77: -93.8125 | E77: -125.125 | F77: -68.0625 | G77: -95.3493 | H77: -49.6875 | I77: -125.211 | J77: -85.6555
A78: 4 | B78: 280 | C78: 4.666666667 | D78: -49.625 | E78: -58.75 | F78: -162.063 | G78: -57.5418 | H78: -49.8125 | I78: -140.335 | J78: -98.0822
A79: 5 | B79: 300 | C79: 5 | D79: -75.375 | E79: -70.875 | F79: -118.813 | G79: -56.5918 | H79: -60.8125 | I79: -61.5576 | J79: -102.24
A80: 6 | B80: 320 | C80: 5.333333333 | D80: -92.25 | E80: -98.125 | F80: -137.188 | G80: -119.635 | H80: -81.375 | I80: -133.405 | J80: -89.259
A81: 7 | B81: 340 | C81: 5.666666667 | D81: -87.75 | E81: -74.375 | F81: -87.625 | G81: -68.1808 | H81: -63.875 | I81: -56.4097 | J81: -97.0235
A82: 8 | B82: 360 | C82: 6 | D82: -37.75 | E82: -104.125 | F82: -155.188 | G82: -91.4158 | H82: -39 | I82: -80.3837 | J82: -150.565
A83: 9 | B83: 380 | C83: 6.333333333 | D83: -120.687 | E83: -98.125 | F83: -153.562 | G83: -142.73 | H83: -58.25 | I83: -119.915 | J83: -135.955
A84: 10 | B84: 400 | C84: 6.666666667 | D84: -114.25 | E84: -66.4375 | F84: -124.812 | G84: -77.505 | H84: -69.9375 | I84: -107.035 | J84: -142.95
A85: 11 | B85: 420 | C85: 7 | D85: -88.125 | E85: -117.188 | F85: -120.938 | G85: -92.2497 | H85: -60.75 | I85: -104.975 | J85: -96.9556
A86: 12 | B86: 440 | C86: 7.333333333 | D86: -51.125 | E86: -127.375 | G86: -55.3313 | H86: -42.25 | I86: -108.077 | J86: -144.562
A87: 13 | B87: 460 | C87: 7.666666667 | D87: -94.25 | E87: -105.188 | F87: -82.4375 | G87: -79.0902 | H87: -52 | I87: -168.211 | J87: -130.794
A88: 14 | B88: 480 | C88: 8 | D88: -28.3125 | E88: -157.937 | F88: -84.875 | G88: -95.7096 | H88: -89.75 | I88: -169.57 | J88: -90.6013
A89: 15 | B89: 500 | C89: 8.333333333 | D89: -58.5625 | E89: -126 | F89: -152.125 | G89: -35.9429 | H89: -98 | I89: -88.797 | J89: -133.7
A90: 16 | B90: 520 | C90: 8.666666667 | D90: -75.9375 | E90: -75.5 | F90: -126.437 | G90: -132.441 | H90: -109.5 | I90: -97.5569 | J90: -151.8
A91: 17 | B91: 540 | C91: 9 | D91: -60.875 | E91: -82.0625 | F91: -73.625 | G91: -65.6357 | H91: -96.875 | I91: -67.5934 | J91: -95.7275
A92: 18 | B92: 560 | C92: 9.333333333 | D92: -88.125 | E92: -127.938 | F92: -110.687 | G92: -57.2352 | H92: -76.75 | I92: -103.317 | J92: -69.1409
A93: 19 | B93: 580 | C93: 9.666666667 | D93: -55.375 | E93: -132.937 | F93: -123.625 | G93: -119.616 | H93: -60.3125 | I93: -103.687 | J93: -147.585
A94: 20 | B94: 600 | C94: 10 | D94: -62 | E94: -126.375 | F94: -102.75 | G94: -129.71 | H94: -124 | I94: -127.086 | J94: -143.311
A95: 1 | B95: 620 | C95: 10.33333333 | D95: -114.375 | E95: -73.25 | F95: -127.812 | G95: -118.889 | H95: -73.3125 | I95: -105.191 | J95: -123.981
A96: 2 | B96: 640 | C96: 10.66666667 | D96: -95.25 | E96: -141.875 | F96: -76.8125 | G96: -134.014 | H96: -67.375 | I96: -222.843 | J96: -85.5577
A97: 3 | B97: 660 | C97: =B97/60 -> 11 | D97: -102.062 | E97: -93 | F97: -128.063 | G97: -86.7418 | H97: -88.0625 | I97: -81.3317 | J97: -67.3423
A98: 4 | B98: 680 | C98: 11.33333333 | D98: -120.125 | E98: -129.062 | F98: -92.625 | G98: -68.8061 | H98: -109.75 | I98: -196.827 | J98: -104.303
A99: 5 | B99: 700 | C99: 11.66666667 | D99: -109 | E99: -134.687 | F99: -100.125 | G99: -89.5976 | H99: -88.125 | I99: -87.8131 | J99: -111.114
A100: 6 | B100: 720 | C100: 12 | D100: -88.4375 | E100: -78.4375 | F100: -103.563 | G100: -52.9858 | H100: -88.5 | I100: -121.01 | J100: -129.647
A101: 7 | B101: 740 | C101: 12.33333333 | D101: -63.75 | E101: -50.6875 | F101: -79.1875 | G101: -69.0964 | H101: -89.25 | I101: -105.821
A102: 8 | B102: 760 | C102: 12.66666667 | D102: -122.187 | E102: -44.4375 | F102: -95.5625 | G102: -65.1702 | H102: -107.25 | I102: -128.239
A103: 9 | B103: 780 | C103: 13 | D103: -104.812 | E103: -93.5625 | F103: -59.875 | G103: -65.1319 | H103: -77.6875 | I103: -151.541
A104: 10 | B104: 800 | C104: 13.33333333 | D104: -87 | E104: -116.437 | F104: -62.3125 | G104: -58.6427 | H104: -59.9375 | I104: -127.532
A105: 11 | B105: 820 | C105: 13.66666667 | D105: -111.625 | E105: -68.875 | G105: -67.503 | H105: -64.625 | I105: -151.957
A106: 12 | B106: 840 | C106: 14 | D106: -109.25 | E106: -81.375 | G106: -41.5488 | H106: -59 | I106: -156.848
A107: 13 | B107: 860 | C107: 14.33333333 | D107: -71.4375 | H107: -39.9375 | I107: -98.9864
A108: 14 | B108: 880 | C108: 14.66666667 | D108: -119.562 | H108: -65 | I108: -115.652
A109: 15 | B109: 900 | C109: 15 | D109: -69.3125 | H109: -54.9375 | I109: -107.264
A110: 16 | B110: 920 | C110: 15.33333333 | D110: -96.6875 | H110: -72.1875 | I110: -90.7803
A111: 17 | B111: 940 | C111: 15.66666667 | D111: -88.625 | H111: -58.1875 | I111: -153.759
A112: 18 | B112: 960 | C112: 16 | D112: -113.25 | H112: -65.625 | I112: -97.3855
A113: 19 | B113: 980 | C113: 16.33333333 | D113: -92.625 | H113: -102.625 | I113: -166.844
A114: 20 | B114: 1000 | C114: 16.66666667 | D114: -94.8125 | H114: -78 | I114: -139.073
H115: -62.1875 | I115: -108.715
H116: -42.714 | I116: -140.467
H117: -81.1875 | I117: -141.232
H118: -96.5 | I118: -142.476
H119: -102.063 | I119: -150.471
H120: -75.9375 | I120: -78.237
H121: -69.5625 | I121: -175.093
H122: -42.714 | I122: -118.434
H123: -64.5625 | I123: -113.605
H124: -114.75 | I124: -69.5266
I125: -92.9629
I126: -86.4103
I127: -84.2778
I128: -130.338
I129: -81.3193
I130: -186.369
I131: -146.405
I132: -80.8651
I133: -168.132
